[Event "Titled Tuesday Blitz March 14 Early 2023"]
[White "Matinian, Nikita"]
[Black "Bruedigam, Martin"]
[WhiteFideId "24129100"]
[BlackFideId "24608033"]
[WhiteElo "2422"]
[BlackElo "2331"]
[Result "1-0"]
[Round "05"]
[TimeControl "180+2"]
[Date "2023.03.14"]
[WhiteClock "0:00:10"]
[BlackClock "0:00:01"]

1. e4 {[%clk 0:02:58]}  c6 {[%clk 0:02:59]} 2. d4 {[%clk 0:02:57]}  d5 {[%clk 0:03:00]} 3. e5 {[%clk 0:02:58]}  Bf5 {[%clk 0:02:59]} 4. Nf3 {[%clk 0:02:58]}  e6 {[%clk 0:02:59]} 5. Be2 {[%clk 0:02:59]}  Ne7 {[%clk 0:02:59]} 6. O-O {[%clk 0:02:59]}  Ng6 {[%clk 0:02:59]} 7. Nbd2 {[%clk 0:02:59]}  Nd7 {[%clk 0:02:59]} 8. Nb3 {[%clk 0:03:00]}  Be7 {[%clk 0:02:55]} 9. Ne1 {[%clk 0:02:57]}  Ngf8 {[%clk 0:02:39]} 10. f4 {[%clk 0:02:52]}  f6 {[%clk 0:02:37]} 11. g4 {[%clk 0:02:51]}  Bg6 {[%clk 0:02:37]} 12. f5 {[%clk 0:02:51]}  Bf7 {[%clk 0:02:34]} 13. Nd3 {[%clk 0:02:51]}  fxe5 {[%clk 0:02:30]} 14. Nxe5 {[%clk 0:02:47]}  Nxe5 {[%clk 0:02:29]} 15. dxe5 {[%clk 0:02:48]}  Qb6+ {[%clk 0:02:27]} 16. Kh1 {[%clk 0:02:48]}  O-O-O {[%clk 0:02:26]} 17. a4 {[%clk 0:02:45]}  a6 {[%clk 0:02:21]} 18. a5 {[%clk 0:02:45]}  Qa7 {[%clk 0:02:22]} 19. Bf4 {[%clk 0:02:37]}  h5 {[%clk 0:02:18]} 20. Qd2 {[%clk 0:02:19]}  hxg4 {[%clk 0:02:14]} 21. Bxg4 {[%clk 0:02:19]}  exf5 {[%clk 0:02:12]} 22. Bxf5+ {[%clk 0:02:20]}  Be6 {[%clk 0:02:12]} 23. Nd4 {[%clk 0:02:17]}  Bxf5 {[%clk 0:02:05]} 24. Nxf5 {[%clk 0:02:18]}  Re8 {[%clk 0:01:48]} 25. c4 {[%clk 0:02:12]}  Qc5 {[%clk 0:01:25]} 26. cxd5 {[%clk 0:02:07]}  Qxd5+ {[%clk 0:01:25]} 27. Qxd5 {[%clk 0:02:07]}  cxd5 {[%clk 0:01:25]} 28. Rac1+ {[%clk 0:02:08]}  Kd7 {[%clk 0:01:23]} 29. Nxg7 {[%clk 0:01:39]}  Rc8 {[%clk 0:01:10]} 30. Rxc8 {[%clk 0:01:38]}  Kxc8 {[%clk 0:01:10]} 31. e6 {[%clk 0:01:23]}  Bf6 {[%clk 0:01:00]} 32. Ne8 {[%clk 0:00:55]}  Be7 {[%clk 0:00:52]} 33. Bd6 {[%clk 0:00:41]}  Nxe6 {[%clk 0:00:48]} 34. Bxe7 {[%clk 0:00:33]}  Rxe8 {[%clk 0:00:48]} 35. Bb4 {[%clk 0:00:25]}  Kd7 {[%clk 0:00:43]} 36. Re1 {[%clk 0:00:19]}  Rg8 {[%clk 0:00:35]} 37. Rg1 {[%clk 0:00:17]}  Rh8 {[%clk 0:00:32]} 38. Rg4 {[%clk 0:00:14]}  d4 {[%clk 0:00:29]} 39. Kg2 {[%clk 0:00:13]}  Kc6 {[%clk 0:00:29]} 40. Kg3 {[%clk 0:00:13]}  Kd5 {[%clk 0:00:30]} 41. h4 {[%clk 0:00:14]}  d3 {[%clk 0:00:25]} 42. Bc3 {[%clk 0:00:13]}  Rc8 {[%clk 0:00:23]} 43. Kf3 {[%clk 0:00:12]}  Nc5 {[%clk 0:00:07]} 44. Rd4+ {[%clk 0:00:12]}  Ke6 {[%clk 0:00:08]} 45. h5 {[%clk 0:00:11]}  Rf8+ {[%clk 0:00:07]} 46. Ke3 {[%clk 0:00:11]}  Rf5 {[%clk 0:00:06]} 47. Rh4 {[%clk 0:00:11]}  Rf7 {[%clk 0:00:03]} 48. h6 {[%clk 0:00:11]}  Rh7 {[%clk 0:00:04]} 49. Bd4 {[%clk 0:00:09]}  Nd7 {[%clk 0:00:04]} 50. Kxd3 {[%clk 0:00:09]}  Ne5+ {[%clk 0:00:04]} 51. Bxe5 {[%clk 0:00:09]}  Kxe5 {[%clk 0:00:04]} 52. Kc4 {[%clk 0:00:09]}  Kf6 {[%clk 0:00:04]} 53. Kc5 {[%clk 0:00:09]}  Kg6 {[%clk 0:00:05]} 54. Kb6 {[%clk 0:00:09]}  Kg5 {[%clk 0:00:05]} 55. Rh1 {[%clk 0:00:09]}  Kg6 {[%clk 0:00:06]} 56. b4 {[%clk 0:00:09]}  Kg5 {[%clk 0:00:06]} 57. Rg1+ {[%clk 0:00:10]}  Kf6 {[%clk 0:00:05]} 58. Rc1 {[%clk 0:00:10]}  Rxh6 {[%clk 0:00:04]} 59. Kxb7 {[%clk 0:00:10]}  Ke7 {[%clk 0:00:04]} 60. Rc6 {[%clk 0:00:10]}  Rh4 {[%clk 0:00:04]} 61. Rb6 {[%clk 0:00:10]}  Kd7 {[%clk 0:00:04]} 62. Kxa6 {[%clk 0:00:11]}  Kc7 {[%clk 0:00:05]} 63. b5 {[%clk 0:00:09]}  Rh8 {[%clk 0:00:04]} 64. Rb7+ {[%clk 0:00:09]}  Kc8 {[%clk 0:00:05]} 65. Ka7 {[%clk 0:00:09]}  Rh5 {[%clk 0:00:05]} 66. a6 {[%clk 0:00:09]}  Rc5 {[%clk 0:00:04]} 67. b6 {[%clk 0:00:10]}  Rc6 {[%clk 0:00:01]} 68. Rb8+ {[%clk 0:00:10]}  Kd7 {[%clk 0:00:01]} 69. b7 {[%clk 0:00:10]} 1-0


[Site "https://www.chess.com"]

[Event "Titled Tuesday Blitz March 14 Early 2023"]
[White "Matutururu, Maxman"]
[Black "Tillyaev, Ulugbek"]
[WhiteFideId "11004487"]
[BlackFideId "14202441"]
[WhiteElo "2446"]
[BlackElo "2377"]
[Result "1/2-1/2"]
[Round "05"]
[TimeControl "180+2"]
[Date "2023.03.14"]
[WhiteClock "0:00:03"]
[BlackClock "0:00:17"]

1. d4 {[%clk 0:03:00]}  c5 {[%clk 0:03:00]} 2. d5 {[%clk 0:02:58]}  e5 {[%clk 0:02:59]} 3. Nc3 {[%clk 0:02:58]}  d6 {[%clk 0:02:57]} 4. e4 {[%clk 0:02:58]}  g6 {[%clk 0:02:56]} 5. Bb5+ {[%clk 0:02:58]}  Nd7 {[%clk 0:02:54]} 6. a4 {[%clk 0:02:57]}  Bg7 {[%clk 0:02:53]} 7. Nf3 {[%clk 0:02:57]}  Ne7 {[%clk 0:02:52]} 8. O-O {[%clk 0:02:56]}  O-O {[%clk 0:02:52]} 9. Be3 {[%clk 0:02:55]}  h6 {[%clk 0:02:51]} 10. h3 {[%clk 0:02:54]}  f5 {[%clk 0:02:50]} 11. exf5 {[%clk 0:02:42]}  gxf5 {[%clk 0:02:51]} 12. Bd2 {[%clk 0:02:26]}  Ng6 {[%clk 0:02:46]} 13. Re1 {[%clk 0:02:24]}  e4 {[%clk 0:02:45]} 14. Nh2 {[%clk 0:02:21]}  Nde5 {[%clk 0:02:46]} 15. Nf1 {[%clk 0:02:18]}  Qh4 {[%clk 0:02:44]} 16. Ng3 {[%clk 0:02:18]}  a6 {[%clk 0:02:31]} 17. Bf1 {[%clk 0:02:15]}  Bd7 {[%clk 0:02:32]} 18. Qh5 {[%clk 0:02:14]}  Rae8 {[%clk 0:02:25]} 19. a5 {[%clk 0:02:07]}  Re7 {[%clk 0:01:56]} 20. Na4 {[%clk 0:01:58]}  Bb5 {[%clk 0:01:41]} 21. Nb6 {[%clk 0:01:53]}  Bxf1 {[%clk 0:01:40]} 22. Kxf1 {[%clk 0:01:49]}  Kh7 {[%clk 0:01:21]} 23. Ra4 {[%clk 0:01:45]}  Bf6 {[%clk 0:01:16]} 24. Kg1 {[%clk 0:01:26]}  Bg5 {[%clk 0:01:14]} 25. Bxg5 {[%clk 0:01:21]}  Qxg5 {[%clk 0:01:15]} 26. Qxg5 {[%clk 0:00:52]}  hxg5 {[%clk 0:01:15]} 27. b4 {[%clk 0:00:47]}  Rc7 {[%clk 0:01:08]} 28. Ne2 {[%clk 0:00:39]}  cxb4 {[%clk 0:01:07]} 29. Nd4 {[%clk 0:00:39]}  Rc3 {[%clk 0:00:43]} 30. Rxb4 {[%clk 0:00:34]}  Rf7 {[%clk 0:00:39]} 31. Rb3 {[%clk 0:00:29]}  Rc5 {[%clk 0:00:38]} 32. Ra1 {[%clk 0:00:22]}  Kh6 {[%clk 0:00:32]} 33. c3 {[%clk 0:00:22]}  Nf4 {[%clk 0:00:32]} 34. Kf1 {[%clk 0:00:15]}  Nxd5 {[%clk 0:00:28]} 35. Nxd5 {[%clk 0:00:14]}  Rxd5 {[%clk 0:00:29]} 36. Ne6 {[%clk 0:00:14]}  Rd2 {[%clk 0:00:26]} 37. Nd8 {[%clk 0:00:13]}  Rd7 {[%clk 0:00:22]} 38. Nxb7 {[%clk 0:00:11]}  Nd3 {[%clk 0:00:23]} 39. Kg1 {[%clk 0:00:06]}  Nxf2 {[%clk 0:00:20]} 40. c4 {[%clk 0:00:06]}  Nd3 {[%clk 0:00:20]} 41. c5 {[%clk 0:00:04]}  dxc5 {[%clk 0:00:20]} 42. Rc3 {[%clk 0:00:04]}  e3 {[%clk 0:00:19]} 43. Nxc5 {[%clk 0:00:04]}  Nxc5 {[%clk 0:00:20]} 44. Rxc5 {[%clk 0:00:04]}  e2 {[%clk 0:00:20]} 45. Re1 {[%clk 0:00:02]}  f4 {[%clk 0:00:19]} 46. Kf2 {[%clk 0:00:02]}  R7d6 {[%clk 0:00:19]} 47. Re5 {[%clk 0:00:02]}  Ra2 {[%clk 0:00:19]} 48. R1xe2 {[%clk 0:00:03]}  Ra3 {[%clk 0:00:18]} 49. Re6+ {[%clk 0:00:03]}  Rxe6 {[%clk 0:00:18]} 50. Rxe6+ {[%clk 0:00:03]}  Kh5 {[%clk 0:00:19]} 51. Rxa6 {[%clk 0:00:04]}  Ra2+ {[%clk 0:00:19]} 52. Kg1 {[%clk 0:00:04]}  Kh4 {[%clk 0:00:18]} 53. Kh2 {[%clk 0:00:03]}  Kh5 {[%clk 0:00:16]} 54. Kg1 {[%clk 0:00:03]}  Ra1+ {[%clk 0:00:16]} 55. Kh2 {[%clk 0:00:03]}  Ra2 {[%clk 0:00:17]} 56. Kg1 {[%clk 0:00:03]} 1/2-1/2


[Site "https://www.chess.com"]

[Event "Titled Tuesday Blitz March 14 Early 2023"]
[White "Demin, Vladimir"]
[Black "Tarasova, Viktoriya"]
[WhiteFideId "4167457"]
[BlackFideId "4175840"]
[WhiteElo "2622"]
[BlackElo "2182"]
[Result "0-1"]
[Round "05"]
[TimeControl "180+2"]
[Date "2023.03.14"]
[WhiteClock "0:00:09"]
[BlackClock "0:00:07"]

1. e4 {[%clk 0:01:52]}  e5 {[%clk 0:02:52]} 2. Nf3 {[%clk 0:01:51]}  Nc6 {[%clk 0:02:52]} 3. Bb5 {[%clk 0:01:50]}  Nf6 {[%clk 0:02:51]} 4. O-O {[%clk 0:01:50]}  Nxe4 {[%clk 0:02:51]} 5. d4 {[%clk 0:01:50]}  Nd6 {[%clk 0:02:51]} 6. dxe5 {[%clk 0:01:50]}  Nxb5 {[%clk 0:02:50]} 7. a4 {[%clk 0:01:51]}  Nbd4 {[%clk 0:02:43]} 8. Nxd4 {[%clk 0:01:51]}  d5 {[%clk 0:02:43]} 9. exd6 {[%clk 0:01:48]}  Nxd4 {[%clk 0:02:42]} 10. Qxd4 {[%clk 0:01:46]}  Qxd6 {[%clk 0:02:43]} 11. Qe4+ {[%clk 0:01:46]}  Qe6 {[%clk 0:02:41]} 12. Qd4 {[%clk 0:01:46]}  Qd6 {[%clk 0:02:41]} 13. Qe3+ {[%clk 0:01:47]}  Be6 {[%clk 0:02:37]} 14. Nc3 {[%clk 0:01:46]}  a6 {[%clk 0:02:36]} 15. Rd1 {[%clk 0:01:45]}  Qc6 {[%clk 0:02:33]} 16. Qg3 {[%clk 0:01:43]}  h5 {[%clk 0:02:19]} 17. h4 {[%clk 0:01:35]}  Bd6 {[%clk 0:02:08]} 18. Qxg7 {[%clk 0:01:26]}  O-O-O {[%clk 0:02:08]} 19. Bg5 {[%clk 0:01:26]}  Rhg8 {[%clk 0:01:40]} 20. Qf6 {[%clk 0:01:08]}  Rde8 {[%clk 0:01:34]} 21. Rd2 {[%clk 0:00:45]}  Be7 {[%clk 0:01:31]} 22. Qf4 {[%clk 0:00:33]}  f6 {[%clk 0:01:26]} 23. Nb5 {[%clk 0:00:33]}  Kb8 {[%clk 0:01:05]} 24. Nd4 {[%clk 0:00:32]}  Qb6 {[%clk 0:00:28]} 25. Bh6 {[%clk 0:00:18]}  Rg4 {[%clk 0:00:23]} 26. Qe3 {[%clk 0:00:15]}  Bc5 {[%clk 0:00:22]} 27. c3 {[%clk 0:00:14]}  Bxd4 {[%clk 0:00:17]} 28. cxd4 {[%clk 0:00:11]}  Reg8 {[%clk 0:00:17]} 29. g3 {[%clk 0:00:10]}  Bd5 {[%clk 0:00:17]} 30. Bf4 {[%clk 0:00:10]}  R4g7 {[%clk 0:00:14]} 31. Rc1 {[%clk 0:00:09]}  Ka8 {[%clk 0:00:14]} 32. Rdc2 {[%clk 0:00:09]}  c6 {[%clk 0:00:14]} 33. Rc5 {[%clk 0:00:09]}  Qd8 {[%clk 0:00:14]} 34. a5 {[%clk 0:00:09]}  Qd7 {[%clk 0:00:15]} 35. Qe2 {[%clk 0:00:04]}  Rg4 {[%clk 0:00:14]} 36. Kf1 {[%clk 0:00:01]}  Bf7 {[%clk 0:00:08]} 37. Ke1 {[%clk 0:00:01]}  Re8 {[%clk 0:00:07]} 38. Be3 {[%clk 0:00:02]}  Rge4 {[%clk 0:00:06]} 39. Kd2 {[%clk 0:00:02]}  Bd5 {[%clk 0:00:06]} 40. Kc2 {[%clk 0:00:02]}  Ka7 {[%clk 0:00:06]} 41. Qd2 {[%clk 0:00:02]}  Qe6 {[%clk 0:00:07]} 42. Qc3 {[%clk 0:00:03]}  Rxe3 {[%clk 0:00:06]} 43. fxe3 {[%clk 0:00:02]}  Qe4+ {[%clk 0:00:07]} 44. Qd3 {[%clk 0:00:02]}  Qg2+ {[%clk 0:00:08]} 45. Kc3 {[%clk 0:00:03]}  Be4 {[%clk 0:00:08]} 46. Kb4 {[%clk 0:00:03]}  Qxg3 {[%clk 0:00:08]} 47. Rxc6 {[%clk 0:00:04]}  Bxd3 {[%clk 0:00:08]} 48. Rxa6+ {[%clk 0:00:05]}  Kxa6 {[%clk 0:00:08]} 49. Rc7 {[%clk 0:00:04]}  Ka7 {[%clk 0:00:09]} 50. Rc5 {[%clk 0:00:04]}  Kb8 {[%clk 0:00:09]} 51. a6 {[%clk 0:00:05]}  Qd6 {[%clk 0:00:08]} 52. a7+ {[%clk 0:00:06]}  Kxa7 {[%clk 0:00:08]} 53. Kc3 {[%clk 0:00:07]}  b6 {[%clk 0:00:07]} 54. Kxd3 {[%clk 0:00:08]}  bxc5 {[%clk 0:00:07]} 55. b4 {[%clk 0:00:09]}  cxd4 {[%clk 0:00:07]} 0-1


[Site "https://www.chess.com"]

[Event "Titled Tuesday Blitz March 14 Early 2023"]
[White "Kiseleva, Arina"]
[Black "Ahn, Hongjin"]
[WhiteFideId "4164989"]
[BlackFideId "13201492"]
[WhiteElo "1756"]
[BlackElo "2182"]
[Result "0-1"]
[Round "05"]
[TimeControl "180+2"]
[Date "2023.03.14"]
[WhiteClock "0:00:04"]
[BlackClock "0:00:09"]

1. d4 {[%clk 0:02:53]}  Nf6 {[%clk 0:02:57]} 2. Nf3 {[%clk 0:02:52]}  e6 {[%clk 0:02:56]} 3. e3 {[%clk 0:02:52]}  d5 {[%clk 0:02:56]} 4. Bd3 {[%clk 0:02:52]}  c5 {[%clk 0:02:55]} 5. O-O {[%clk 0:02:51]}  c4 {[%clk 0:02:55]} 6. Be2 {[%clk 0:02:51]}  Nc6 {[%clk 0:02:55]} 7. b3 {[%clk 0:02:50]}  cxb3 {[%clk 0:02:49]} 8. axb3 {[%clk 0:02:51]}  Be7 {[%clk 0:02:46]} 9. Nbd2 {[%clk 0:02:42]}  O-O {[%clk 0:02:43]} 10. Bb2 {[%clk 0:02:33]}  b6 {[%clk 0:02:43]} 11. Ne5 {[%clk 0:02:33]}  Bb7 {[%clk 0:02:42]} 12. f4 {[%clk 0:02:29]}  Ne8 {[%clk 0:02:05]} 13. Bd3 {[%clk 0:02:12]}  Nd6 {[%clk 0:01:58]} 14. Ba3 {[%clk 0:01:53]}  Nf5 {[%clk 0:01:19]} 15. Bxe7 {[%clk 0:01:45]}  Ncxe7 {[%clk 0:01:14]} 16. Rf3 {[%clk 0:01:30]}  f6 {[%clk 0:01:13]} 17. Ng4 {[%clk 0:01:28]}  Nd6 {[%clk 0:00:25]} 18. Rh3 {[%clk 0:01:08]}  Nef5 {[%clk 0:00:24]} 19. Nf2 {[%clk 0:01:04]}  g6 {[%clk 0:00:21]} 20. Qf3 {[%clk 0:01:00]}  Qe7 {[%clk 0:00:15]} 21. g4 {[%clk 0:00:59]}  Ng7 {[%clk 0:00:15]} 22. Qg3 {[%clk 0:00:59]}  Rf7 {[%clk 0:00:14]} 23. Qh4 {[%clk 0:00:53]}  Nge8 {[%clk 0:00:14]} 24. Bxg6 {[%clk 0:00:51]}  Rg7 {[%clk 0:00:12]} 25. Bxh7+ {[%clk 0:00:51]}  Rxh7 {[%clk 0:00:12]} 26. Qg3 {[%clk 0:00:51]}  Rxh3 {[%clk 0:00:12]} 27. Qxh3 {[%clk 0:00:50]}  Qh7 {[%clk 0:00:11]} 28. Qg3 {[%clk 0:00:48]}  Qxc2 {[%clk 0:00:11]} 29. Nf3 {[%clk 0:00:47]}  Rc8 {[%clk 0:00:09]} 30. Rxa7 {[%clk 0:00:43]}  Qxb3 {[%clk 0:00:07]} 31. g5 {[%clk 0:00:43]}  Qb1+ {[%clk 0:00:06]} 32. Kg2 {[%clk 0:00:42]}  Nf5 {[%clk 0:00:07]} 33. Qh3 {[%clk 0:00:32]}  Ned6 {[%clk 0:00:06]} 34. Nh4 {[%clk 0:00:24]}  Nxh4+ {[%clk 0:00:03]} 35. Qxh4 {[%clk 0:00:24]}  Qh7 {[%clk 0:00:03]} 36. Qg4 {[%clk 0:00:23]}  Qf5 {[%clk 0:00:03]} 37. Qh4 {[%clk 0:00:23]}  fxg5 {[%clk 0:00:04]} 38. fxg5 {[%clk 0:00:22]}  Rc2 {[%clk 0:00:04]} 39. Qg3 {[%clk 0:00:20]}  Ne4 {[%clk 0:00:03]} 40. Qb8+ {[%clk 0:00:15]}  Bc8 {[%clk 0:00:04]} 41. Qf4 {[%clk 0:00:07]}  Qxf4 {[%clk 0:00:04]} 42. exf4 {[%clk 0:00:06]}  Rxf2+ {[%clk 0:00:05]} 43. Kg1 {[%clk 0:00:07]}  Rxf4 {[%clk 0:00:05]} 44. Ra8 {[%clk 0:00:07]}  Rg4+ {[%clk 0:00:05]} 45. Kf1 {[%clk 0:00:05]}  Nd6 {[%clk 0:00:05]} 46. Rb8 {[%clk 0:00:04]}  Rxd4 {[%clk 0:00:05]} 47. Rxb6 {[%clk 0:00:05]}  Nf7 {[%clk 0:00:05]} 48. Rc6 {[%clk 0:00:05]}  Kg7 {[%clk 0:00:04]} 49. Rxc8 {[%clk 0:00:05]}  Nxg5 {[%clk 0:00:05]} 50. h4 {[%clk 0:00:05]}  Nf7 {[%clk 0:00:05]} 51. h5 {[%clk 0:00:04]}  Rh4 {[%clk 0:00:05]} 52. h6+ {[%clk 0:00:04]}  Rxh6 {[%clk 0:00:06]} 53. Re8 {[%clk 0:00:05]}  Rf6+ {[%clk 0:00:06]} 54. Ke2 {[%clk 0:00:05]}  Nd6 {[%clk 0:00:07]} 55. Re7+ {[%clk 0:00:04]}  Kg6 {[%clk 0:00:08]} 56. Rd7 {[%clk 0:00:05]}  Nf5 {[%clk 0:00:08]} 57. Kd3 {[%clk 0:00:05]}  Nh6 {[%clk 0:00:07]} 58. Rd8 {[%clk 0:00:05]}  Nf7 {[%clk 0:00:07]} 59. Re8 {[%clk 0:00:05]}  Kf5 {[%clk 0:00:08]} 60. Kd4 {[%clk 0:00:05]}  Nd6 {[%clk 0:00:06]} 61. Rd8 {[%clk 0:00:04]}  Nf7 {[%clk 0:00:07]} 62. Re8 {[%clk 0:00:04]}  Ng5 {[%clk 0:00:07]} 63. Rg8 {[%clk 0:00:04]}  Nf3+ {[%clk 0:00:07]} 64. Ke3 {[%clk 0:00:04]}  Ne5 {[%clk 0:00:08]} 65. Kd4 {[%clk 0:00:04]}  Nc6+ {[%clk 0:00:08]} 66. Kc5 {[%clk 0:00:05]}  Ne7 {[%clk 0:00:09]} 67. Rf8 {[%clk 0:00:04]}  Rxf8 {[%clk 0:00:09]} 0-1


[Site "https://www.chess.com"]

[Event "Titled Tuesday Blitz March 14 Early 2023"]
[White "Aung Thant Zin"]
[Black "Garv Gaur"]
[WhiteFideId "13000063"]
[BlackFideId "45030839"]
[WhiteElo "2278"]
[BlackElo "2068"]
[Result "0-1"]
[Round "05"]
[TimeControl "180+2"]
[Date "2023.03.14"]
[WhiteClock "0:00:06"]
[BlackClock "0:01:23"]

1. e4 {[%clk 0:02:51]}  Nc6 {[%clk 0:02:56]} 2. Nf3 {[%clk 0:02:49]}  d6 {[%clk 0:02:56]} 3. d4 {[%clk 0:02:45]}  g6 {[%clk 0:02:53]} 4. h3 {[%clk 0:02:41]}  Bg7 {[%clk 0:02:52]} 5. Nc3 {[%clk 0:02:38]}  e5 {[%clk 0:02:52]} 6. d5 {[%clk 0:02:35]}  Nce7 {[%clk 0:02:52]} 7. Bg5 {[%clk 0:02:26]}  h6 {[%clk 0:02:51]} 8. Bxe7 {[%clk 0:02:22]}  Nxe7 {[%clk 0:02:49]} 9. g4 {[%clk 0:02:09]}  f5 {[%clk 0:02:45]} 10. gxf5 {[%clk 0:01:58]}  gxf5 {[%clk 0:02:45]} 11. Nh4 {[%clk 0:01:41]}  Bf6 {[%clk 0:02:44]} 12. Qh5+ {[%clk 0:01:38]}  Kf8 {[%clk 0:02:44]} 13. exf5 {[%clk 0:01:22]}  Qe8 {[%clk 0:02:39]} 14. Ng6+ {[%clk 0:01:19]}  Nxg6 {[%clk 0:02:38]} 15. fxg6 {[%clk 0:01:18]}  Kg7 {[%clk 0:02:38]} 16. Bd3 {[%clk 0:01:12]}  c6 {[%clk 0:02:26]} 17. O-O-O {[%clk 0:01:08]}  Rf8 {[%clk 0:02:10]} 18. h4 {[%clk 0:00:46]}  Be7 {[%clk 0:02:07]} 19. Ne4 {[%clk 0:00:40]}  Rf4 {[%clk 0:02:06]} 20. Ng5 {[%clk 0:00:33]}  Bg4 {[%clk 0:01:22]} 21. Ne6+ {[%clk 0:00:07]}  Bxe6 {[%clk 0:01:23]} 22. dxe6 {[%clk 0:00:06]}  Bf6 {[%clk 0:01:23]} 0-1


[Site "https://www.chess.com"]

[Event "Titled Tuesday Blitz March 14 Early 2023"]
[White "Tan, Zhongyi"]
[Black "Torres Dominguez, David"]
[WhiteFideId "8603642"]
[BlackFideId "2220857"]
[WhiteElo "2519"]
[BlackElo "1999"]
[Result "1-0"]
[Round "05"]
[TimeControl "180+2"]
[Date "2023.03.14"]
[WhiteClock "0:00:04"]
[BlackClock "0:00:01"]

1. d4 {[%clk 0:03:00]}  e5 {[%clk 0:02:55]} 2. dxe5 {[%clk 0:03:00]}  d6 {[%clk 0:02:55]} 3. exd6 {[%clk 0:02:59]}  Bxd6 {[%clk 0:02:56]} 4. Nf3 {[%clk 0:02:56]}  Bg4 {[%clk 0:02:57]} 5. g3 {[%clk 0:02:47]}  Nc6 {[%clk 0:02:56]} 6. Bg2 {[%clk 0:02:47]}  Qe7 {[%clk 0:02:54]} 7. c3 {[%clk 0:02:40]}  Nf6 {[%clk 0:02:50]} 8. Bg5 {[%clk 0:02:30]}  h6 {[%clk 0:02:46]} 9. Bxf6 {[%clk 0:02:30]}  Qxf6 {[%clk 0:02:46]} 10. Nbd2 {[%clk 0:02:30]}  O-O-O {[%clk 0:02:45]} 11. Qc2 {[%clk 0:02:29]}  Rhe8 {[%clk 0:02:44]} 12. Ne4 {[%clk 0:02:16]}  Qe6 {[%clk 0:02:42]} 13. Nxd6+ {[%clk 0:02:14]}  Rxd6 {[%clk 0:02:41]} 14. e3 {[%clk 0:02:07]}  Bh3 {[%clk 0:02:37]} 15. O-O {[%clk 0:02:05]}  Bxg2 {[%clk 0:02:31]} 16. Kxg2 {[%clk 0:02:06]}  g5 {[%clk 0:02:31]} 17. Rad1 {[%clk 0:02:02]}  Rxd1 {[%clk 0:02:28]} 18. Rxd1 {[%clk 0:02:02]}  Qxa2 {[%clk 0:02:18]} 19. c4 {[%clk 0:01:39]}  Qa5 {[%clk 0:02:09]} 20. Rd5 {[%clk 0:01:36]}  Qa6 {[%clk 0:01:33]} 21. Qf5+ {[%clk 0:01:35]}  Kb8 {[%clk 0:01:28]} 22. Qxf7 {[%clk 0:01:34]}  Rc8 {[%clk 0:01:28]} 23. Rb5 {[%clk 0:01:13]}  Na5 {[%clk 0:01:13]} 24. Ne5 {[%clk 0:01:04]}  b6 {[%clk 0:01:00]} 25. Qd5 {[%clk 0:00:17]}  c6 {[%clk 0:00:59]} 26. Qd6+ {[%clk 0:00:15]}  Ka8 {[%clk 0:00:59]} 27. Rb4 {[%clk 0:00:14]}  Qb7 {[%clk 0:00:55]} 28. c5 {[%clk 0:00:13]}  b5 {[%clk 0:00:53]} 29. Rd4 {[%clk 0:00:09]}  Nb3 {[%clk 0:00:51]} 30. Rd3 {[%clk 0:00:08]}  Nc1 {[%clk 0:00:48]} 31. Rd1 {[%clk 0:00:08]}  Nb3 {[%clk 0:00:48]} 32. Nd7 {[%clk 0:00:08]}  Qc7 {[%clk 0:00:33]} 33. Qe6 {[%clk 0:00:07]}  Rd8 {[%clk 0:00:24]} 34. Qxb3 {[%clk 0:00:05]}  Rxd7 {[%clk 0:00:22]} 35. Qg8+ {[%clk 0:00:05]}  Kb7 {[%clk 0:00:21]} 36. Rxd7 {[%clk 0:00:04]}  Qxd7 {[%clk 0:00:21]} 37. Qg6 {[%clk 0:00:04]}  Qd5+ {[%clk 0:00:19]} 38. e4 {[%clk 0:00:05]}  Qxc5 {[%clk 0:00:17]} 39. Qxh6 {[%clk 0:00:05]}  b4 {[%clk 0:00:17]} 40. Qxg5 {[%clk 0:00:05]}  Qd4 {[%clk 0:00:16]} 41. Qe7+ {[%clk 0:00:04]}  Kb6 {[%clk 0:00:15]} 42. b3 {[%clk 0:00:05]}  a5 {[%clk 0:00:15]} 43. h4 {[%clk 0:00:04]}  a4 {[%clk 0:00:04]} 44. bxa4 {[%clk 0:00:05]}  b3 {[%clk 0:00:03]} 45. a5+ {[%clk 0:00:04]}  Kxa5 {[%clk 0:00:01]} 46. Qa3+ {[%clk 0:00:04]} 1-0


[Site "https://www.chess.com"]